Cogmind - Beta 13 @@@ ROGUE MODE // 2024.03.23 @ 18:33:11 Player: f_ Result: Destroyed by G-47 Trooper with Particle Gun Performance ------------- Evolutions (2) 1000 Regions Visited (6) 1200 Robots Destroyed (109) 545 Value Destroyed (2994) 2994 Prototype IDs (10) 200 Alien Tech Used (0) 0 Bonus (-992) -992 TOTAL SCORE: 4947 Bonus ------- High Alert Combat Kills 581 Follower Combat Kills 250 Entered Garrisons 200 Aligned with FarCom 300 Friendly Fire -2323 Cogmind --------- Core Integrity 0/550 Matter 300/300 Energy 100/100 System Corruption 23% Temperature Hot (271) Movement Core (400) Ox7 Location -8/Garrison Parts ------- > --- POWER (1) -------- (None) > --- PROPULSION (2) --- (None) > --- UTILITY (6) ------ Medium Storage Unit Hacking Suite System Shield Sensor Drone Bay (2/20) > --- WEAPON (2) ------- (None) > --- INVENTORY (10) --- Improved Heat Sink Particle Charger Cloak of Protection Heavy EM Shotgun Particle Gun Improved Datajack Field Lobotomy Kit (4) Peak State ------------ > --- POWER ------------ Nuclear Core > --- PROPULSION ------- Carbon-fiber Leg Carbon-fiber Leg > --- UTILITY ---------- Advanced Heat Sink Medium Storage Unit Weight Redist. System Signal Interpreter Improved Targeting Computer Reaction Control System > --- WEAPON ----------- AWS/Thermal > --- INVENTORY -------- Carbon-fiber Leg Cloak of Protection Remote Shield Hacking Suite Sensor Drone Bay Rocket Launcher Datajack Field Lobotomy Kit [Rating: 43] Favorites ----------- Power Ion Engine Engine Ion Engine Power Core Light Nuclear Core Propulsion Aluminum Leg Treads Armored Treads Leg Aluminum Leg Utility Medium Storage Unit Device Weight Redist. System Storage Medium Storage Unit Processor Signal Interpreter Hackware Hacking Suite Protection Hardened Medium Armor Plating Weapon Heavy EM Shotgun Energy Gun Heavy EM Shotgun Energy Cannon Heavy Particle Cannon Ballistic Gun Assault Rifle Ballistic Cannon Flak Cannon Launcher Mini Grenade Launcher Special Weapon Field Lobotomy Kit Impact Weapon Hammer Slashing Weapon Katana Special Melee Weapon Improved Datajack Build | -11 -10 -10 -10 -9 -8 -8 ------- Run | Yrd Mat Min Exi Min Mat Gar Slots Evolved 4 | . . . . . 4 . Power . | . . . . . . . Propulsion . | . . . . . . . Utility 4 | . . . . . 4 . Weapon . | . . . . . . . Parts Attached 102 | 6 9 . 4 3 71 9 Power 12 | 1 2 . . . 9 . Engine 8 | 1 2 . . . 5 . Core 4 | . . . . . 4 . Reactor . | . . . . . . . Propulsion 18 | 2 3 . . 1 10 2 Treads 4 | . . . . . 4 . Leg 14 | 2 3 . . 1 6 2 Wheel . | . . . . . . . Hover . | . . . . . . . Flight . | . . . . . . . Utility 33 | 1 3 . 2 2 21 4 Device 16 | . 1 . 1 1 10 3 Storage 4 | 1 1 . 1 1 . . Processor 4 | . 1 . . . 3 . Hackware 5 | . . . . . 4 1 Protection 4 | . . . . . 4 . Artifact . | . . . . . . . Weapon 39 | 2 1 . 2 . 31 3 Energy Gun 23 | 1 1 . 1 . 18 2 Energy Cannon 4 | . . . . . 4 . Ballistic Gun 3 | 1 . . . . 2 . Ballistic Cannon 1 | . . . . . 1 . Launcher 2 | . . . . . 1 1 Special Weapon 2 | . . . 1 . 1 . Impact Weapon 1 | . . . . . 1 . Slashing Weapon 1 | . . . . . 1 . Piercing Weapon . | . . . . . . . Special Melee Weapon 2 | . . . . . 2 . Unidentified Prototypes 8 | . . . 3 1 4 . Parts Lost 16 | . . . . . 8 8 Power 3 | . . . . . 2 1 Propulsion 5 | . . . . . 2 3 Utility 4 | . . . . . 2 2 Weapon 4 | . . . . . 2 2 Highest Loss Streak 7 | . . . . . 3 7 To Critical Strikes . | . . . . . . . Average Slot Usage (%) 93 | . 99 100 89 84 94 94 Engine 8 | . 14 14 14 14 6 . Core 1 | . . . . . 2 8 Treads 5 | . . . . . 9 8 Leg 15 | . 28 28 28 28 8 5 Device 6 | . 10 . . . 9 8 Storage 10 | . 14 14 13 13 9 9 Processor 11 | . 3 14 14 14 11 8 Hackware 12 | . . . . . 19 26 Energy Gun 11 | . 14 14 13 14 10 4 Energy Cannon 1 | . . . . . 2 . Ballistic Gun 3 | . 14 14 4 . 1 . Slashing Weapon 1 | . . . . . 1 8 Naked Turns . | . . . . . . . Heaviest Build 42 | 14 20 18 23 23 42 35 Greatest Support 42 | 20 20 20 20 20 42 40 Greatest Overweight (x) 8 | . . . 1 1 1 8 Average Overweight (x) . | . . . . . . . Largest Inventory Capacity 10 | 8 10 10 10 10 10 10 Average Capacity 9 | 6 9 10 9 9 10 10 Most Carried 10 | 5 10 10 10 10 10 10 Average Carried 8 | 1 7 9 9 9 8 7 Final Capacity 10 | 8 10 10 10 10 10 10 Final Carried 10 | 2 10 10 10 10 10 7 Class Distribution -------------------- 42% | Hacker-Mutant 32% | Mutant 25% | Scavenger-Mutant Dominant Class ---------------- Mutant | -10/Materials Scavenger-Mutant | -10/Mines Mutant | -10/Exiles Mutant | -9/Mines Hacker-Mutant | -8/Materials Hacker-Mutant | -8/Garrison Resources | -11 -10 -10 -10 -9 -8 -8 ----------- Run | Yrd Mat Min Exi Min Mat Gar Matter Collected 1837 | 234 314 . . 73 1057 159 Remotely . | . . . . . . . Salvage Created 4084 | . 756 . . 150 2821 357 Parts 243 | . 60 . . 5 160 18 Haulers Intercepted 8 | . 2 . . . 6 . Recyclers Shooed 1 | . . . . . 1 . Parts Field Recycled . | . . . . . . . Retrieved Matter . | . . . . . . . Parts Self-Destructed . | . . . . . . . Prevented . | . . . . . . . Kills | -11 -10 -10 -10 -9 -8 -8 ------- Run | Yrd Mat Min Exi Min Mat Gar Combat Hostiles Destroyed 69 | . 16 . . 2 42 9 Melee 8 | . . . . . 4 4 Guns 51 | . 16 . . 2 28 5 Cannons 6 | . . . . . 6 . AOE 1 | . . . . . 1 . Classes Destroyed 13 | . 7 . . . 5 1 Worker 10 | . 2 . . . 8 . Builder 4 | . . . . . 4 . Tunneler 3 | . 1 . . 1 1 . Hauler 8 | . 2 . . . 6 . Operator 7 | . 3 . . . 4 . Drone 8 | . . . . . . 8 Watcher 8 | . 3 . . . 5 . Swarmer 14 | . 6 . . . 5 3 Grunt 40 | . 10 . . 3 24 3 Brawler 3 | . . . . . 2 1 Duelist 1 | . . . . . 1 . Sentry 10 | . . . . . 8 2 Specialist 2 | . . . . . 2 . Best Kill Streak 9 | . 8 . . 2 9 4 Combat Bots Only 5 | . 4 . . 2 5 4 Max Kills in Single Turn 5 | . 2 . . 1 2 5 Gunslinging 1 | . . . . . . 1 Exploded 1 | . . . . . 1 . Melee 1 | . . . . . 1 1 Uniques/NPCs Destroyed . | . . . . . . . Combat | -11 -10 -10 -10 -9 -8 -8 -------- Run | Yrd Mat Min Exi Min Mat Gar Hostile Shots Fired 331 | . 58 . . 3 196 74 Missed 98 | . 14 . . 2 68 14 Damage Taken 3611 | . 446 . . 18 2103 1044 Core 667 | . 116 . . . 320 231 Absorbed by Shields 14 | . . . . . 14 . Regen/Repaired (Parts) 220 | . . . . . 220 . Core Remaining (%) 76 | 100 . . . 53 . . Volleys Fired 231 | . 66 1 . . 150 14 Largest 2 | . 2 2 . . 2 2 Hottest 131 | . 70 60 . . 131 128 Shots Fired 493 | . 131 2 . 17 319 24 Gun 412 | . 131 2 . 17 242 20 Cannon 74 | . . . . . 74 . Launcher 6 | . . . . . 2 4 Special 1 | . . . . . 1 . Kinetic 104 | . 66 1 . . 37 . Thermal 281 | . 65 1 . 17 178 20 Explosive 6 | . . . . . 2 4 Electromagnetic 101 | . . . . . 101 . Robot Hit Streak 19 | . 8 . . 4 19 7 Robot Miss Streak 5 | . 5 . . 3 5 2 Penetration Max . | . . . . . . . Secondary Targets 1 | . . . . . . 1 Max Gunslinging Chain 1 | . . . . . . 1 Autonomous 88 | . . . . 17 71 . Shots Hit Robots 340 | . 79 . . 8 229 24 Core Hits 182 | . 42 . . 6 106 28 Critical Kills . | . . . . . . . Critical Parts Destroyed . | . . . . . . . Critical Strikes 11 | . 2 . . . 6 3 Burn 8 | . 2 . . . 5 1 Sever 3 | . . . . . 1 2 Melee Attacks 42 | . . . . . 13 29 Impact . | . . . . . . . Slashing 42 | . . . . . 13 29 Piercing . | . . . . . . . Sneak Attacks 3 | . . . . . 1 2 Combat Hostiles 3 | . . . . . 1 2 Follow-up Attacks . | . . . . . . . Damage Inflicted 8506 | . 1062 . . 347 5211 1886 Guns 5369 | . 1062 . . 347 3692 268 Cannons 1100 | . . . . . 1100 . Explosions 1357 | . . . . . 131 1226 Melee 676 | . . . . . 284 392 Ramming 4 | . . . . . 4 . Kinetic 1030 | . 493 . . . 537 . Thermal 4262 | . 569 . . 347 3078 268 Explosive 1226 | . . . . . . 1226 Electromagnetic 1308 | . . . . . 1308 . Impact . | . . . . . . . Slashing 676 | . . . . . 284 392 Piercing . | . . . . . . . Highest Corruption 23 | . . . . . 15 23 Average Corruption 10 | . . . . . 9 15 Corruption Purged . | . . . . . . . Corruption Blocked . | . . . . . . . Effects 181 | . . . . . 138 43 Message Errors 38 | . . . . . 31 7 Matter Fused 36 | . . . . . 29 7 Heat Flow Errors 25 | . . . . . 21 4 Energy Discharges 20 | . . . . . 14 6 Parts Rejected 4 | . . . . . 2 2 Parts Fused 2 | . . . . . 1 1 Data Loss (minor) 27 | . . . . . 15 12 Data Loss (major) 11 | . . . . . 10 1 Misfires 12 | . . . . . 9 3 Alerts 3 | . . . . . 3 . Weapon Failures 3 | . . . . . 3 . Overload Shots . | . . . . . . . Overflow Damage 205 | . . . . . 17 188 Projectiles 17 | . . . . . 17 . Explosions 174 | . . . . . . 174 Melee 14 | . . . . . . 14 Knockbacks . | . . . . . . . Impact . | . . . . . . . Kinetic . | . . . . . . . Secondary . | . . . . . . . Self-Inflicted Damage 237 | . . . . . 72 165 Shots 6 | . . . . . 2 4 Rammed 1 | . . . . . 1 . Targets Rammed 1 | . . . . . 1 . Kicked . | . . . . . . . Crushed . | . . . . . . . Highest Temperature 410 | . 117 . . 9 410 284 Average Temperature 92 | . 29 . . 9 107 152 Received Heat Transfer 1347 | . 177 . . 27 846 297 Effects 6 | . . . . . 5 1 Shutdowns 2 | . . . . . 2 . Energy Bleed 1 | . . . . . 1 . Interference 1 | . . . . . . 1 Matter Decay 1 | . . . . . 1 . Short Circuit 1 | . . . . . 1 . Siege Activations . | . . . . . . . Robots Corrupted 2 | . . . . . 2 . Combat Hostiles 2 | . . . . . 2 . Parts Fried 4 | . . . . . 4 . Impact Corruptions . | . . . . . . . Robots Melted 1 | . . . . . 1 . Combat Hostiles 1 | . . . . . 1 . Parts Melted 10 | . . . . 2 7 1 Heat Transferred 7803 | . 1790 . . 426 4884 703 Parts Sabotaged . | . . . . . . . Parts Stolen . | . . . . . . . Parts Stripped . | . . . . . . . Power Chain Reactions 3 | . . . . . 3 . Alert | -11 -10 -10 -10 -9 -8 -8 ------- Run | Yrd Mat Min Exi Min Mat Gar Peak Influence 972 | . 323 84 . 119 972 866 Initial 606 | . . 84 . . . 606 Average 445 | . 130 82 . 21 631 696 Maximum Alert Level 3 | . 1 . . . 3 3 Low Security (%) 31 | 100 72 100 . 100 . . Level 1 17 | . 27 . . . 26 . Level 2 16 | . . . . . 21 42 Level 3 34 | . . . . . 50 57 Level 4 . | . . . . . . . Level 5 . | . . . . . . . High Security . | . . . . . . . Max Security . | . . . . . . . Squads Dispatched 18 | . 6 1 . 1 10 . Investigation 6 | . 3 . . . 3 . Extermination . | . . . . . . . Reinforcement 9 | . 3 . . . 6 . Assault 3 | . . 1 . 1 1 . Garrison . | . . . . . . . Intercept . | . . . . . . . Searches Triggered . | . . . . . . . Construction Impeded . | . . . . . . . Haulers Reinforced . | . . . . . . . Active Scanning Responses . | . . . . . . . Cargo Convoy Interrupts . | . . . . . . . Stealth | -11 -10 -10 -10 -9 -8 -8 --------- Run | Yrd Mat Min Exi Min Mat Gar Distress Signals 3 | . 1 . . . 2 . Communications Jammed . | . . . . . . . Distress Signals . | . . . . . . . Times Spotted 124 | . 28 . . 7 77 12 Peak Tracking Total 7 | . 6 . . 5 5 7 Tactical Retreats 13 | . 1 . . . 8 4 Traps | -11 -10 -10 -10 -9 -8 -8 ------- Run | Yrd Mat Min Exi Min Mat Gar Traps Triggered 8 | . 2 . . . 6 . Indirectly . | . . . . . . . Trap Hack Attempts 26 | . . . . . 26 . Triggered 1 | . . . . . 1 . Disarmed 1 | . . . . . 1 . Reprogrammed 3 | . . . . . 3 . Reused . | . . . . . . . Traps Extracted . | . . . . . . . Installed . | . . . . . . . Triggered . | . . . . . . . Machines | -11 -10 -10 -10 -9 -8 -8 ---------- Run | Yrd Mat Min Exi Min Mat Gar Machines Disabled 11 | . . . . . 11 . Max in Single Turn 1 | . . . . . 1 . Machines Repaired . | . . . . . . . Machines Dismantled . | . . . . . . . Machines Sabotaged . | . . . . . . . Overloaded Fab Kills . | . . . . . . . Hacking | -11 -10 -10 -10 -9 -8 -8 --------- Run | Yrd Mat Min Exi Min Mat Gar Machines Accessed 21 | . 5 . 3 1 12 . Terminals 11 | . 5 . . . 6 . Fabricators . | . . . . . . . Repair Stations 2 | . . . . . 2 . Recycling Units 2 | . . . . . 2 . Scanalyzers 1 | . . . . . 1 . Garrison Access 1 | . . . . . 1 . Total Hacks 87 | . 14 . 21 1 51 . Successful 67 | . 7 . 21 1 38 . Failed 20 | . 7 . . . 13 . Catastrophic 3 | . 1 . . . 2 . Database Lockouts . | . . . . . . . Manual 3 | . . . 3 . . . Terminals 35 | . 14 . . . 21 . Fabricators . | . . . . . . . Repair Stations 7 | . . . . . 7 . Recycling Units 3 | . . . . . 3 . Scanalyzers 17 | . . . . . 17 . Garrison Access 3 | . . . . . 3 . Terminal Hacks 40 | . 7 . 21 1 11 . Record 22 | . . . 21 . 1 . Prototype ID Bank 1 | . . . . . 1 . Open Door 1 | . . . . 1 . . Branch Access Points 1 | . . . . . 1 . Emergency Access Points 2 | . 1 . . . 1 . Alert Level 2 | . 1 . . . 1 . Unreport Threat 1 | . . . . . 1 . Locate Traps 2 | . 1 . . . 1 . Dispatch Records 2 | . 1 . . . 1 . Reinforcement Status 1 | . 1 . . . . . Recall Investigation 1 | . 1 . . . . . Hauler Manifests 3 | . 1 . . . 2 . Zone Layout 1 | . . . . . 1 . Fabricator Hacks . | . . . . . . . Repair Station Hacks 6 | . . . . . 6 . Scan Component 3 | . . . . . 3 . Repair 3 | . . . . . 3 . Recycling Unit Hacks 3 | . . . . . 3 . Report Inventory 2 | . . . . . 2 . Retrieve Components 1 | . . . . . 1 . Scanalyzer 16 | . . . . . 16 . Insert Component 8 | . . . . . 8 . Analyze 8 | . . . . . 8 . Garrison Access Hacks 2 | . . . . . 2 . Unlock Access 1 | . . . . . 1 . Coupler Status 1 | . . . . . 1 . Unauthorized Hacks . | . . . . . . . Terminals . | . . . . . . . Fabricators . | . . . . . . . Repair Stations . | . . . . . . . Recycling Units . | . . . . . . . Scanalyzers . | . . . . . . . Garrison Access . | . . . . . . . Data Cores Recovered . | . . . . . . . Used . | . . . . . . . Hacking Detections 12 | . 3 . . . 9 . Full Trace Events 5 | . 1 . . . 4 . Feedback Events . | . . . . . . . Feedback Blocked . | . . . . . . . Robot Schematics Acquired . | . . . . . . . Robots Built . | . . . . . . . Authchips . | . . . . . . . Time . | . . . . . . . Total Robot Build Rating . | . . . . . . . Part Schematics Acquired 6 | . . . . . 6 . Parts Built . | . . . . . . . Authchips . | . . . . . . . Time . | . . . . . . . Total Part Build Rating . | . . . . . . . Parts Repaired 3 | . . . . . 3 . Time 158 | . . . . . 158 . Parts Recycled . | . . . . . . . Recycled Matter . | . . . . . . . Retrieved Matter . | . . . . . . . Retrieved Components 9 | . . . . . 9 . Parts Scanalyzed 6 | . . . . . 6 . Part Schematics Acquired 6 | . . . . . 6 . Parts Damaged . | . . . . . . . Bothacking | -11 -10 -10 -10 -9 -8 -8 ------------ Run | Yrd Mat Min Exi Min Mat Gar Used RIF Installer . | . . . . . . . Robots Hacked . | . . . . . . . Non-combat . | . . . . . . . Combat . | . . . . . . . Robot Hacks Applied . | . . . . . . . Relay Couplers Released . | . . . . . . . Fabnet Peak Effective % . | . . . . . . . Robots Rewired . | . . . . . . . Allies Hacked . | . . . . . . . Hacks Repelled . | . . . . . . . Allies | -11 -10 -10 -10 -9 -8 -8 -------- Run | Yrd Mat Min Exi Min Mat Gar Total Allies 6 | . . 4 . 1 1 . Largest Group 5 | . . 4 4 5 2 . Highest-Rated Group 102 | . . 71 71 102 90 . Highest-Rated Ally 90 | . . 31 31 31 90 . Total Orders 5 | . . . . . . 5 EXPLORE 5 | . . . . . . 5 Ally Attacks 41 | . . . . 19 22 . Total Damage 916 | . . . . 273 643 . Kills 9 | . . . . 5 4 . Allies Corrupted . | . . . . . . . Allies Melted . | . . . . . . . Field Lobotomies 1 | . . . . . 1 . Intel | -11 -10 -10 -10 -9 -8 -8 ------- Run | Yrd Mat Min Exi Min Mat Gar Robot Analysis Total . | . . . . . . . Derelict Logs Recovered 1 | . . . . 1 . . Drone Launches 23 | . . . . . . 23 Drone Recoveries 5 | . . . . . . 5 Exploration | -11 -10 -10 -10 -9 -8 -8 ------------- Run | Yrd Mat Min Exi Min Mat Gar Turns Passed 10304 | 70 1071 407 801 1695 5211 1049 Spaces Moved 5189 | 48 620 300 494 816 2589 322 Core 2 | 1 . . . . . 1 Treads 1599 | . . . . . 1401 198 Legs 3588 | 47 620 300 494 816 1188 123 Wheels . | . . . . . . . Hover . | . . . . . . . Flight . | . . . . . . . Fastest Speed 50 | 50 120 120 120 120 120 165 Average Speed 156 | 118 120 120 158 189 154 193 Slowest Speed 450 | 120 120 120 190 190 250 450 Overloaded Moves . | . . . . . . . Propulsion Burnouts . | . . . . . . . Robots Hopped . | . . . . . . . Cave-ins Triggered 1 | . . . . . . 1 Exploration Rate (%) 67 | 3 85 62 89 100 96 36 Regions Visited 6 Branch Regions 3 Pre-discovered Areas . | . . . . . . . Known Exits Taken 5 | . 1 1 1 1 1 . Unknown Exits Taken 1 | 1 . . . . . . Scrap Searched 3 | . . . . 3 . . Spaces Dug 30 | . . . . . 19 11 Terrain Destroyed 120 | . . . . 5 71 44 Melee 1 | . . . . . . 1 Projectile 38 | . . . . 5 33 . AOE 81 | . . . . . 38 43 Terrain Rammed . | . . . . . . . Walls Destroyed . | . . . . . . . Machines Disabled . | . . . . . . . Actions | -11 -10 -10 -10 -9 -8 -8 --------- Run | Yrd Mat Min Exi Min Mat Gar Total 6947 | 61 819 345 518 965 3555 684 Wait 1163 | . 99 43 . 126 603 292 Move 5184 | 47 619 299 493 815 2589 322 Hop . | . . . . . . . Pick Up 111 | 8 16 1 11 12 56 7 Fast Attach 8 | . . . . 2 6 . Attach 57 | 6 2 . 3 . 39 7 Detach 6 | . . . 2 . 4 . Swap 37 | . 7 . 1 1 26 2 Drop 75 | . 10 1 8 9 42 5 Fire 231 | . 66 1 . . 150 14 Melee 42 | . . . . . 13 29 Ram . | . . . . . . . Kick . | . . . . . . . Crush 1 | . . . . . 1 . Escape Stasis . | . . . . . . . Rewire 6 | . . . . . . 6 Trap 26 | . . . . . 26 . Miscellaneous . | . . . . . . . Route ------- -11/Scrapyard -10/Materials (discovered 3 exits: *Mat x2 / *Min) -10/Mines (discovered 2 exits: *Mat / *Exi) -10/Exiles (discovered 2 exits: *Min x2) -9/Mines (discovered 2 exits: *Mat x2) -8/Materials (discovered 4 exits: *Fac x3 / Gar) -8/Garrison History --------- Turn | Location | Event 6 | -11/Scrapyard | Discovered new exit (range 15) 71 | -11/Scrapyard | Entered Materials 276 | -10/Materials | Discovered new exit (range 3) 320 | -10/Materials | Build established: Mutant 407 | -10/Materials | Discovered new exit (range 10) 731 | -10/Materials | Discovered new exit (range 15) 898 | -10/Materials | Identified exit to Materials 1141 | -10/Materials | Identified exit to Mines 1142 | -10/Materials | Entered Mines 1161 | -10/Mines | Build established: Scavenger-Mutant 1213 | -10/Mines | Assisted by bots powering up and referring to "LRC-V3" 1246 | -10/Mines | Discovered exit to Materials (range 10) 1416 | -10/Mines | Met a Derelict testing a Signal Generator 1436 | -10/Mines | Found Signal Generator 1528 | -10/Mines | Deemed a non-threat by the Exiles lab entrance 1528 | -10/Mines | Discovered new exit (range 5) 1531 | -10/Mines | Identified exit to Exiles 1549 | -10/Mines | Entered Exiles 1549 | -10/Exiles | Accompanied by 4 allies 1569 | -10/Exiles | Discovered new exit (range 15) 1584 | -10/Exiles | Identified exit to Mines 1607 | -10/Exiles | Met 8R-AWN 1629 | -10/Exiles | Met EX-HEX 1672 | -10/Exiles | Met EX-BIN 1689 | -10/Exiles | Aligned with FarCom system 1690 | -10/Exiles | Given EX-Vault access code 1789 | -10/Exiles | Opened EX-Vault 1796 | -10/Exiles | Found Prototype Device 1798 | -10/Exiles | Identified Cloak of Protection 1804 | -10/Exiles | Found Prototype Special Weapon 1805 | -10/Exiles | Identified Field Lobotomy Kit 1812 | -10/Exiles | Found Prototype Energy Gun 1813 | -10/Exiles | Identified AWS/Thermal 1896 | -10/Exiles | Warned to stay clear of 0b10 Research branches 1949 | -10/Exiles | Met EX-DEC 2016 | -10/Exiles | Visited The Gauntlet 2081 | -10/Exiles | Build established: Mutant 2325 | -10/Exiles | Discovered exit to Mines (range 14) 2350 | -10/Exiles | Stole three prototypes: AWS/Thermal, Cloak of Protection, Field Lobotomy Kit 2350 | -10/Exiles | Entered Mines 2350 | -9/Mines | Accompanied by 4 allies 2353 | -9/Mines | Received a Mining Laser from a helpful Derelict 2612 | -9/Mines | Identified exit to Materials 2814 | -9/Mines | Found the Drone Emporium 2821 | -9/Mines | Found Prototype Device 2837 | -9/Mines | Identified Sensor Drone Bay 3434 | -9/Mines | Received a Rocket Launcher from a helpful Derelict 3893 | -9/Mines | Discovered exit to Materials (range 10) 4045 | -9/Mines | Entered Materials 4045 | -8/Materials | Accompanied by 2 allies 4045 | -8/Materials | Evolved 4 slots: Utility x4 4759 | -8/Materials | Build established: Scavenger-Mutant 5020 | -8/Materials | Assimilated H-61 Shepherd with FLK Orb 5648 | -8/Materials | Discovered new exit (range 5) 5651 | -8/Materials | Identified exit to Factory 5946 | -8/Materials | Lost 3 parts (1p1n1u) 6017 | -8/Materials | Repaired Carbon-fiber Leg 6277 | -8/Materials | Build established: Hacker-Mutant 7633 | -8/Materials | Discovered exit to Factory (range 13) 7986 | -8/Materials | Discovered exit to Factory (range 5) 8214 | -8/Materials | Repaired Hvy. EM Shotgun 8445 | -8/Materials | First assault squad dispatched 8526 | -8/Materials | System corruption reached 10% 8529 | -8/Materials | Core integrity fell below 50% 8556 | -8/Materials | Lost 3 parts (1p1u1w) 8944 | -8/Materials | Repaired Hvy. EM Shotgun 9256 | -8/Materials | Identified exit to Garrison 9256 | -8/Materials | Entered Garrison 9409 | -8/Garrison | Murdered 5 allies 9579 | -8/Garrison | Murdered 5 allies 9724 | -8/Garrison | Triggered checkpoint 9726 | -8/Garrison | Triggered checkpoint 9866 | -8/Garrison | Triggered checkpoint 10290 | -8/Garrison | Core integrity fell below 20% 10291 | -8/Garrison | Crushed by falling debris 10305 | -8/Garrison | Destroyed by G-47 Trooper with Particle Gun Last Messages --------------- 10273_ Signal Interpreter temporarily disabled. 10273_ Y-45 Defender destroyed. 10282_ Aluminum Leg destroyed. 10284_ Lgt. Nuclear Core destroyed. 10286_ Field Laser destroyed. 10291_ The unstable cave ceiling collapses. 10291_ Crushed by falling debris. 10291_ Signal Interpreter destroyed. 10291_ System corrupted by crushing effect (+4). 10291_ Hacking Suite destroyed. 10291_ System corrupted by crushing effect (+4). 10291_ Flight Unit crushed. 10294_ System corrupted: Matter fused (-9). 10295_ Y-45 Defender suffers critical hit (Burn). 10302_ Y-45 Defender heat damages Lgt. Armor Plating. 10303_ Y-45 Defender destroyed. 10304_ Acquired 12 matter. 10305_ Particle Gun destroyed. Map ----- +----------------------------------------------------+ | ?????????????????????????????????????????????????? | | ?????????????????????????????????????????????????? | | ?????????????????????????????????????????????????? | | ????????????????????#####???""##?????????????????? | | ????????????????????# ?? ??????????????????? | | ???????????????????? ?? ???????????????????? | | ???????????????????? ? ???? ??????????????? | | ????????????????????# #? ?#? ??????????????? | | ??????????????????### ## ? ## #?????????????? | | ??????????????????# ? "?????????????? | | ??????????????????# ? "?????????????? | | ??????????????????# ? ??????????????? | | ??????????????????? ?? ????????????????? | | ????????????????????# #? #??? #?????????????? | | ????????????????????# ## ## ###???????????? | | ????????????????????# ^^ ??????????? | | ????????????????????# ^^ ??????????? | | ????????????????????# ^^ #?????????????? | | ????????????????????## ## ######?????????????? | | ?????????????????????# #? #??????????????????? | | ?????????????????????# #??####??????????????????? | | ?????????????????????#/%#????????????????????????? | | ?????????????????????#=*#????????????????gg??????? | | ???????????######??###%%###??????????????????????? | | ???????????# #### #[=#!#??????????????????????? | | ############ # # =g@#??????????????????????? | | # %= [ [g##??????????????????????? | | # = [ g = #???????????Y??????????? | | # ####"## # ## # # #??????????????????????? | | # #??# ########### # ###??????????????????????? | | # #??# #?????????#### #????????????????????????? | | # #??# #????????????# #????????????????????????? | | # #??# #????????????# #????????????????????????? | | # #??# #????????????# #????????????????????????? | | # #??# #????????????# #??????s?????????????????? | | # #??# ############## #????????????????????????? | | # #### ##""""""""""## #????????????????????????? | | # ## ##""" !!!"""## #????????????????????????? | | # " ##"" ""## #????????????????????????? | | # #####"! !"## #????????????????????????? | | # ###???#"! !"## #????????????????????????? | | # #?????#"! !"## #????????????????????????? | | # #?????#"! !"## #????????????????????????? | | # #?????#"! !"## #????????????????????????? | | # #?????#"! !"## #????????????????????????? | | # #?????#"" ] ""## #????????????????????????? | | # #?????#### ###### #????????????????????????? | | # ########### ##### #????????????????????????? | | " #????????????????????????? | | != # n #????????????????????????? | +----------------------------------------------------+ Best States ------------- Heat Dissipation 50 Energy Generation 18 Energy Capacity 265 Matter Stores 300 Matter Capacity 300 Sight Range 16 Terrain Scan Density 10 Cloak Strength 5 Additional Mass Support 9 Armor Coverage 225 Resistance: EM 15 Evasion (%) 59 Targeting Accuracy 6 Recoil Reduction 2 Offensive Hacking 20 Defensive Hacking 20 Item Schematics ----------------- Insulated Plating | -8/Materials | Scanalyzed Imp. Datajack | -8/Materials | Scanalyzed Reactive Plating | -8/Materials | Scanalyzed Mni. Grenade Launcher | -8/Materials | Scanalyzed Hvy. EM Shotgun | -8/Materials | Scanalyzed Field Laser | -8/Materials | Scanalyzed Robot Schematics ------------------ None Fabricated ------------ Nothing Alien Tech Used ----------------- None Achievements -------------- Collateral Damage Maybe Next Time I'll Detach My Launcher Release The Drones! Challenges ------------ None Game ------ Seed GravityClaymoresLaser Manual? 0 Play Time 01:47:24 Cumulative 41.9 hours Start 2024.03.23 @ 16:44:00 End 2024.03.23 @ 18:33:11 Sessions 1 Manual Loads 0 Difficulty Rogue Special Mode None Game No. 27 Rogue 25 Adventurer 0 Explorer 2 Win Type - Total 0 Types 0/0/0/0/0/0/0/0/0 Lore% 15 Gallery% 26 Achievement% 19 Wizard Run 0 Options --------- Layout 1 ASCII 0 Keyboard 0 Movement Mouse Keybinds 0 Fullscreen 2 Font 48/Tamsyn Map View 50x35 Zoom Use 0% Tactical HUD 1 Map Filters NONE Filters NONE Steam 1 RUN: 7085012a-e00f-46d8-98fe-aaf34d475d51